Workbook

Sheet Summary
A3: PRICE FOR
B5: SUMMARY
A7: ITEM NO | B7: DESCRIPTION
C9: R
A10: A1 | B10: PRELIMINARY AND GENERAL
A12: A2 | B12: ='Schedule A2'!C7 -> SECTION A2: LANDFILL
B14: MATERIAL CONFORMANCE TESTING
B16: 3RD PARTY QCA AS PER CQA DOCUMENT
A17: A3 | B17: TOTAL BROUGHT FORWARD FROM SECTION 12: SOCIO-ECONOMIC DEVELOPMENT (SED)
B19: SUB-TOTAL
B20: VAT
B21: TOTAL

Sheet Schedule A1
E1: SCHEDULE A1
A3: PRICE FOR SITE ESTABLISHMENT
A5: ITEM PART A | B5: SPEC | C5: DESCRIPTION | D5: UNIT | E5: QTY | F5: RATE | G5: AMOUNT ( R )
A7: A1 | C7: SECTION A1: PRELIMINARY AND GENERAL
B9: SABS 1200A | C9: GENERAL
A11: A1.1 | B11: 8.3 | C11: FIXED-CHARGE ITEMS
A12: A1.1.1 | B12: 8.3.1 | C12: Contractual Requirements | D12: Sum | E12: 1
B14: 8.3.2 | C14: Establishment of facilities on Site
B16: 8.3.2.1 | C16: Facilities for Engineer:
A17: A1.1.2 | B17: PSA 8.3.2.1 | C17: a) One Furnished Office - 12m2 | D17: Sum | E17: 1
A18: A1.1.3 | C18: b) Contract Name Boards ( 2 Number) | D18: Sum | E18: 1
B20: 8.3.2.2 | C20: Facilities for Contractor:
A21: A1.1.4 | C21: a) Offices and storage sheds | D21: Sum | E21: 1
A22: A1.1.5 | C22: b) Workshops | D22: Sum | E22: 1
A23: A1.1.6 | C23: c) Laboratories | D23: Sum | E23: 1
A24: A1.1.7 | C24: d) Living accommodation | D24: Sum | E24: 1
A25: A1.1.8 | C25: e) Ablution and latrine facilities | D25: Sum | E25: 1
A26: A1.1.9 | C26: f) Tools and equipment | D26: Sum | E26: 1
A27: A1.1.10 | C27: g) Water supplies, electrical power and telecommunication | D27: Sum | E27: 1
A28: A1.1.11 | C28: h) Dealing with water | D28: Sum | E28: 1
A29: A1.1.12 | C29: i) Access | D29: Sum | E29: 1
A30: A1.1.13 | C30: j) Plant | D30: Sum | E30: 1
A31: A1.1.14 | B31: PSA 8.3.3 | C31: Other fixed charge obligations | D31: Sum | E31: 1
A32: A1.1.15 | B32: PSA 8.3.3.1 | C32: Complying with Health and Safety Regulations | D32: Sum | E32: 1
A33: A1.1.16 | B33: PSA 8.3.3.2 | C33: Complying with Environmental Requirements | D33: Sum | E33: 1
A34: A1.1.17 | B34: 8.3.4 | C34: Removal of Site Establishment | D34: Sum | E34: 1
A36: A1.2 | B36: 8.4 | C36: TIME RELATED ITEMS
A37: A1.2.1 | B37: 8.4.1 | C37: Contractual Requirements | D37: Sum | E37: 1
B39: 8.4.2 | C39: Operation and Maintenance of facilities on Site, for
C40: duration of Construction, except where otherwise stated
B42: 8.4.2.1 | C42: Facilities for Engineer:
A43: A1.2.2 | B43: PSA 8.4.2.1 | C43: a) One Furnished Office - 12m2 | D43: Sum | E43: 1
A44: A1.2.3 | C44: b) Contract Name Boards ( 2 Number) | D44: Sum | E44: 1
A45: A1.2.4 | C45: C) Survey Assistants and Equipment | D45: Sum | E45: 1
C47: Total carried forward
C49: Total brought forward
B50: 8.4.2.2 | C50: Facilities for Contractor:
A51: A1.2.5 | C51: a) Offices and storage sheds | D51: Sum | E51: 1
A52: A1.2.6 | C52: b) Workshops | D52: Sum | E52: 1
A53: A1.2.7 | C53: c) Laboratories | D53: Sum | E53: 1
A54: A1.2.8 | C54: d) Living accommodation | D54: Sum | E54: 1
A55: A1.2.9 | C55: e) Ablution and latrine facilities | D55: Sum | E55: 1
A56: A1.2.10 | C56: f) Tools and equipment | D56: Sum | E56: 1
A57: A1.2.11 | C57: g) Water supplies, electric power and communications | D57: Sum | E57: 1
A58: A1.2.12 | C58: h) Dealing with water | D58: Sum | E58: 1
A59: A1.2.13 | C59: i) Access | D59: Sum | E59: 1
A60: A1.2.14 | C60: j) Plant | D60: Sum | E60: 1
A61: A1.2.15 | B61: 8.4.3 | C61: Supervision for duration of Construction | D61: Sum | E61: 1
A62: A1.2.16 | B62: 8.4.4 | C62: Company and Head Office overhead costs for the duration of the Contract | D62: Sum | E62: 1
A63: A1.2.17 | B63: PSA 8.4.5 | C63: Other Time-Related Obligations | D63: Sum | E63: 1
A64: A1.2.18 | B64: PSA 8.4.5.1 | C64: Complying with Health and Safety Regulations | D64: Sum | E64: 1
A65: A1.2.19 | B65: PSA 8.4.5.2 | C65: Complying with Environmental Requirements | D65: Sum | E65: 1
A66: A1.2.20 | B66: PSA 8.4.5.3 | C66: Wayleaves and Permits | D66: Sum | E66: 1
A67: A1.2.21 | C67: Sasol Gas Line | D67: No | E67: 3
A68: A1.2.22 | C68: Regional Road | D68: No | E68: 2
A69: A1.2.23 | C69: Eskom 132 kV HV overhead powerlines | D69: No | E69: 2
A71: A1.3 | B71: 8.5 | C71: SUMS STATED PROVISIONALLY BY ENGINEER
B72: PSA 8.5.1 | C72: Community Liaison Officer (CLO)
A73: A1.3.1 | C73: a) Remuneration of CLO | D73: Prov Sum
A74: A1.3.2 | C74: b) Contractors mark-up on items (a) above | D74: %
B76: PSA 8.5.2 | C76: Training
A78: A1.3.3 | C78: a) Training Allowance | D78: Prov Sum
A79: A1.3.4 | C79: b) Contractors mark-up on Item (a) above | D79: %
A81: A1.4 | B81: PSA 8.8.5 | C81: COST OF SURVEY
A82: A1.4.1 | B82: PSA 8.8.5 (a) | C82: As-Built Survey | D82: Sum | E82: 1
A84: A1.4 | B84: 8.7 | C84: DAY WORK
C85: (Executed only on Instruction of the Engineer)
B87: 8.7.1 | C87: Labour
A88: A1.4.1 | C88: a) Un-skilled | D88: hr | E88: 10
A89: A1.4.2 | C89: b) Semi-skilled | D89: hr | E89: 10
A90: A1.4.3 | C90: c) Skilled (artisan - welder, plumber etc.) | D90: hr | E90: 10
A91: A1.4.4 | C91: d) Driver (LDV,machine, trucks, etc.) | D91: hr | E91: 10
A92: A1.4.5 | C92: e) Steel fixer | D92: hr | E92: 10
A93: A1.4.6 | C93: f) Concretor | D93: hr | E93: 10
A94: A1.4.7 | C94: g) Shutterhand | D94: hr | E94: 10
A95: A1.4.8 | C95: h) Security guard | D95: hr | E95: 10
C97: Total carried forward
C99: Total brought forward
B100: 8.7.2 | C100: Plant and Equipment
A101: A1.4.9 | C101: a) Tractor loader backhoe (TLB) | D101: hr | E101: 10
A102: A1.4.10 | C102: b) Crawler Excavators
A103: A1.4.11 | C103: (i) Smaller than 93kW (small) | D103: hr | E103: 10
A104: A1.4.12 | C104: (ii) Bigger than 93kW but smaller than 200kW ( Medium) | D104: hr | E104: 10
A105: A1.4.13 | C105: (iii) Bigger than 200kW but smaller than 400kW (Large) | D105: hr | E105: 10
A106: A1.4.14 | C106: c) Tipper Trucks
A107: A1.4.15 | C107: (i) Tipper trucks (3m³) Small | D107: hr | E107: 10
A108: A1.4.16 | C108: (ii) Tipper trucks (5m³) Medium | D108: hr | E108: 10
A109: A1.4.17 | C109: (iii) Tipper trucks (10m³) Large | D109: hr | E109: 10
A110: A1.4.18 | C110: d) Flat Bed Trucks
A111: A1.4.19 | C111: (i) Flat bed 5t capacity | D111: hr | E111: 10
A112: A1.4.20 | C112: (ii) Flat bed 7t capacity | D112: hr | E112: 10
A113: A1.4.21 | C113: e) Mobile Crane 5t at 3m radius | D113: hr | E113: 10
A114: A1.4.22 | C114: f) Walk behind vibrating rollers | D114: hr | E114: 10
A115: A1.4.23 | C115: g) Plate compactors | D115: hr | E115: 10
A116: A1.4.24 | C116: (i) Model - Wacker or similar | D116: hr | E116: 10
A117: A1.4.25 | C117: h) Waterpump | D117: hr | E117: 10
A118: A1.4.26 | C118: Material | D118: Prov Sum
C119: Percentage adjustment to materials and plant not included in Daywork Schedule to cover contractor's expenses with regard to these items | D119: % | F119: 10%
C121: NB: The total tendered for Preliminary and General shall not exceed 15% of the Tender Sum
C125: Total brought forward
C127: Total Section A1 Carried Forward To Summary
A129: ________________________________ | E129: _______________________
A130: TENDERER'S SIGNATURE | E130: DATE

Sheet Schedule A2
B1: Annexure C2.2: Pricing Schedule / Bill of Quantities (BoQ) | E1: SCHEDULE A1
A3: PRICE FOR LANDFILL REHABILITATION
A5: ITEM PART A | B5: SPEC | C5: DESCRIPTION | D5: UNIT | E5: QTY | F5: RATE | G5: AMOUNT ( R )
A7: A1 | C7: SECTION A2: LANDFILL
B9: SABS 1200A | C9: GENERAL
A11: A1.1 | B11: PSA 8.8.5 | C11: Cost of survey
A12: A1.1.1 | C12: a) As-built Surveys | D12: Sum | E12: 1
B14: SABS 1200C | C14: SITE CLEARANCE
A15: A1.2 | B15: 8.2.1 | C15: Clear and grub
A16: A1.2.1 | C16: a) General Site Clearance and Grubbing | D16: m² | E16: 122900
A18: A1.3 | B18: 8.2.2 | C18: Remove and grub large trees and tree stumps of girth:
A19: A1.3.1 | C19: a) Over 0,1 m and up to and including 1,0 m (stumps) | D19: No | E19: 10
B21: SABS 1200D | C21: EARTHWORKS
A23: A1.4 | C23: Remove Topsoil (150mm) and stockpile as directed by the engineer. (1km free haul)
A24: A1.4.1 | C24: a) Landfill Area | D24: m³ | E24: =E16*0.15 -> 18435
A26: A1.5 | C26: Excavate and shape (cut to fill) in all materials for Landfill Rehabilitation to line and level as shown on the drawings. Stockpile suitable material for final rehabilitation layers. (1km free haul)
A27: A1.5.1 | C27: a) Landfill Area | D27: m³ | E27: 50000
A29: A1.6 | C29: Extra Over for intermediate excavation for Landfill
A30: A1.6.1 | C30: a) Landfill Area | D30: m³ | E30: =E27*0.25 -> 12500
A32: A1.7 | C32: Excavate anchor trench for Landfill on all embankments, for the Geotextile installation shown on the drawings.
A33: A1.7.1 | C33: a) Landfill Area | D33: m³ | E33: =0.7*0.5*1510 -> 529
A35: A1.8 | C35: Excavate for Landfill Subsoil Curtain Drain System (300mm x 2000mm)
A36: A1.8.1 | C36: a) Landfill Area | D36: m³ | E36: =0.3*2*1050 -> 630
A38: A1.9 | C38: Excavate for Landfill Toe Drain
A39: A1.9.1 | C39: a) Landfill Area | D39: m³ | E39: =4*1*0.5*1700 -> 3400
A41: A1.10 | C41: Excavate for Landfill Capping Toe Drain
A42: A1.10.1 | C42: a) Landfill Area | D42: m³ | E42: =0.6*0.5*1700 -> 510
A44: A1.11 | C44: Excavate for Landfill Concrete Down Chute
A45: A1.11.1 | C45: a) Landfill Area | D45: m³ | E45: =2*0.5*0.5*70 -> 35
C47: BACKFILL
A49: A1.12 | C49: Shape, backfill and compact Landfill to line and level shown on drawings. Materials from cut to fill excavations. Compact to 90% MOD AASHTO.
A50: A1.12.1 | C50: a) Landfill Area | D50: m³ | E50: 50000
A52: A1.12 | C52: Place and compact selected soil layer from excavated materials on landfill for base preparation layer to 100mm thick as directed by the Engineer and compact to 90% MOD AASHTO.
A53: A1.12.1 | C53: a) Landfill Area | D53: m³ | E53: =E16*0.1 -> 12290
A55: A1.13 | C55: Place and compact selected sandy soil layer from excavated materials on landfill for first cover soil drainage layer.
A56: A1.13.1 | C56: a) Landfill Area | D56: m³ | E56: =E16*0.3 -> 36870
A58: A1.14 | C58: Place and compact selected topsoil layer from stockpiles (50% available on site from site clearance) on landfill for final cover soil layer.
A59: A1.14.1 | C59: a) Landfill Area | D59: m³ | E59: =E16*0.15 -> 18435
A61: A1.15 | C61: Place and compact excavated materials from the anchor trench for Landfill and lightly compact without damaging the Geo-Textile Materials. The backfill has to be done as soon as the Geo-Textile l is placed to ensure the full anchor trench length is used as the lining anchor.
A62: A1.15.1 | C62: a) Landfill Area | D62: m³ | E62: =E33 -> 529
A64: A1.16 | C64: Backfill and compact excavated materials from the Sub-soil drains.
A65: A1.16.1 | C65: a) Landfill Area | D65: m³ | E65: =E36 -> 630
A67: A1.17 | C67: Rip and compact toe drain area for drain preparation 150mm.
A68: A1.17.1 | C68: a) Landfill Area | D68: m2 | E68: =1700*(4.15*2) -> 14110
A70: A1.18 | C70: Place and shape stabilised (10% cement) storm water control berms on the landfill crest as shown on the drawings.
A71: A1.18.1 | C71: a) Landfill Area | D71: m³ | E71: =(2*0.2*0.5)*1510 -> 302
C73: IMPORT MATERIALS
A75: A1.19 | C75: Import from commercial sources topsoil for the final cover soil layer (50%)
A76: A1.19.1 | C76: a) Landfill Area | D76: m³ | E76: =E59 -> 18435
A78: A1.20 | C78: Import and place 100mm Hyson Cell or similar to concrete down chute. Fill will 25Mpa 19mm stone concrete.
A79: A1.20.1 | C79: a) Hyson Cells | D79: m2 | E79: =70*4 -> 280
A80: A1.20.2 | C80: b) Concrete | D80: m³ | E80: =E79*0.1 -> 28
A82: A1.21 | C82: Import from commercial sources washed 28-30mm drainage aggregate for capping drain system.
A83: A1.21.1 | C83: a) Landfill Area | D83: m³ | E83: =E42 -> 510
A85: A1.22 | C85: Import from commercial sources washed river sand for toe drain system.
A86: A1.22.1 | C86: a) Landfill Area | D86: m³ | E86: =1050*2*0.3 -> 630
B88: 1200 DK | C88: MISCELLANEOUS
A90: A1.23 | C90: Supply and install 3800gsm GCL, as per drawing.
A91: A1.23.1 | C91: a) Landfill Crest Area | D91: m2 | E91: 95000
A93: A1.24 | C93: Supply and install 280 gsm NWNP Geotextile for as per drawing.
A94: A1.24.1 | C94: a) Landfill Side Slope Area | D94: m2 | E94: 32000
A96: A1.25 | C96: Supply and install 130 gsm NWNP Geotextile for as per drawing.
A97: A1.25.1 | C97: a) Landfill Capping Toe Drain | D97: m2 | E97: =1.7*1700 -> 2890
A99: A1.26 | C99: Supply and install 75mm Dia perforated HDPE pipe (Geo-pipe or Similar) for the capping toe drain, as per drawing.
A100: A1.26.1 | C100: a) Landfill Area | D100: m | E100: 1700
A102: A1.27 | C102: Supply and install subsoil drainage system complete with Flow Net, Geotextile, HDPE layer and piping, as per drawing.
A103: A1.27.1 | C103: a) Landfill Area | D103: m | E103: 1050
A105: A1.28 | C105: Hydro seed final rehabilitated areas with location specific grass species
A106: A1.28.1 | C106: a) Landfill Area | D106: m2 | E106: =E16 -> 122900
A107: A1.28.1 | C107: b) Toe Drain | D107: m2 | E107: =1700*8.3 -> 14110
B109: 1200 GA | C109: CONCRETE WORKS
A111: A1.29 | C111: Concrete lined energy dissipater: Supply, place and compact Hyson Cells filled with 25Mpa 19mm stone concrete, and stone pitching complete as shown on the drawings
A112: A1.29.1 | C112: a) Landfill Area | D112: Sum | E112: 1
A114: A1.30 | C114: Import and place 100mm Hyson Cell or similar to concrete down chute. Fill will 25Mpa 19mm stone concrete.
A115: A1.30.1 | C115: a) Hyson Cells | D115: m2 | E115: =70*4 -> 280
A116: A1.30.2 | C116: b) Concrete | D116: m³ | E116: =E115*0.1 -> 28
C119: Total brought forward
C121: Total Section A1 Carried Forward To Summary
A123: ________________________________ | E123: _______________________
A124: TENDERER'S SIGNATURE | E124: DATE

Sheet SED-Schedule A3
F1: SCHEDULE A3
B4: SOCIO-ECONOMIC DEVELOPMENT (SED)
A6: Item | B6: Description | C6: U O M | D6: Qty | E6: Rate (B) | F6: Total A*B
A7: No.
B10: SCHEDULE I : SOCIO ECONOMIC DEVELOPMENT
A12: 1 | B12: SKILLS DEVELOPMENT PROGRAM
A14: 1.1 | B14: Accredited training programmes are targeted which will provide the beneficiaries with significant and recognized credit value in accordance with the National Qualification Framework (NQF) (2% of Project Value - Sub Total A) | C14: Sum | D14: 1
A16: 1.2 | B16: Contractors mark-up on Item 1.1 above | C16: %
A18: 2 | B18: SOCIAL RESPONSIBILITY PROGRAM
A20: 2.1 | B20: Social Responsibility programs aimed at community development (1% of Project Value - Sub Total A) | C20: Sum | D20: 1
A22: 2.2 | B22: Contractors mark-up on Item 2.1 above | C22: %
A24: 3 | B24: COMMUNITY LIASON OFFICER
A26: 3.1 | B26: Community Liason Officer. A key component in aiding the realisation of the SED objectives is effective community liaison with all the relevant role-players, structures, civic organisations and the community at large. | C26: Sum | D26: 1
A28: 3.2 | B28: Contractors mark-up on Item 3.1 above | C28: %
A30: 4 | B30: SED ADMINISTRATION
A32: 4.1 | B32: Labour Management Services (1% of Project Value - Sub Total A) | C32: Sum | D32: 1
A34: 4.2 | B34: Contractors mark-up on Item 4.1 above | C34: %
A36: 5 | B36: PARTICIPATION OF LOCAL ENTERPRICES
A38: 5.1 | B38: Work Allocated to Local Enterprises (Inclusive of P&G's and SHEQ) (Minimum 5% of Project Value) (Sub-Total A) | C38: Sum | D38: 1
A40: 5.2 | B40: Contractors mark-up on Item 5.1 above | C40: %
A42: Total amount excluding Value-Added Tax (VAT) to be carried to
A43: Summary of Price Schedules
A46: ________________________________ | E46: _______________________
A47: TENDERER'S SIGNATURE | E47: DATE
